Cogmind - Beta 13 @@@ ROGUE MODE // 2024.05.14 @ 22:54:40 Player: paplal Result: Destroyed by G-47 Trooper with Particle Gun Performance ------------- Evolutions (2) 1000 Regions Visited (3) 600 Robots Destroyed (47) 235 Value Destroyed (1420) 1420 Prototype IDs (1) 20 Alien Tech Used (0) 0 Bonus (112) 112 TOTAL SCORE: 3387 Bonus ------- High Alert Combat Kills 112 Cogmind --------- Core Integrity 0/550 Matter 289/300 Energy 39/100 System Corruption 8% Temperature Cool (9) Movement Treading (157) Location -8/Materials Parts ------- > --- POWER (2) -------- (None) > --- PROPULSION (3) --- Armored Treads Advanced Treads > --- UTILITY (4) ------ Improved Heat Sink Medium Storage Unit Weight Redist. System > --- WEAPON (2) ------- Gauss Rifle > --- INVENTORY (10) --- Improved Ion Engine Light Nuclear Core Light Nuclear Core Carbon-fiber Leg Heat Sink Advanced Weight Redist. System Beam Rifle Particle Gun Peak State ------------ > --- POWER ------------ Light Deuterium Engine Light Nuclear Core > --- PROPULSION ------- Armored Treads Armored Treads Advanced Treads > --- UTILITY ---------- Improved Heat Sink Medium Storage Unit Compact Matter Pod Weight Redist. System > --- WEAPON ----------- Heavy EM Pulse Gun Advanced Beam Cannon > --- INVENTORY -------- Light Nuclear Core Armored Treads Advanced Weight Redist. System Heavy Flail [Rating: 30] Favorites ----------- Power Light Deuterium Engine Engine Light Deuterium Engine Power Core Light Nuclear Core Propulsion Armored Treads Treads Armored Treads Leg Aluminum Leg Flight Unit Cesium-ion Thruster Utility Compact Matter Pod Device Improved Heat Sink Storage Compact Matter Pod Weapon Heavy EM Pulse Gun Energy Gun Heavy EM Pulse Gun Energy Cannon Advanced Beam Cannon Ballistic Gun Gauss Rifle Ballistic Cannon Light Cannon Launcher Grenade Launcher Impact Weapon Heavy Flail Slashing Weapon Katana Build | -11 -10 -9 -8 ------- Run | Yrd Mat Mat Mat Slots Evolved 4 | . . 2 2 Power 1 | . . . 1 Propulsion 1 | . . . 1 Utility 2 | . . 2 . Weapon . | . . . . Parts Attached 38 | 2 5 10 21 Power 5 | . 1 1 3 Engine 3 | . 1 1 1 Core 2 | . . . 2 Reactor . | . . . . Propulsion 11 | . 2 2 7 Treads 8 | . . 2 6 Leg 2 | . 2 . . Wheel . | . . . . Hover . | . . . . Flight 1 | . . . 1 Utility 8 | 1 1 2 4 Device 3 | . . 1 2 Storage 5 | 1 1 1 2 Processor . | . . . . Hackware . | . . . . Protection . | . . . . Artifact . | . . . . Weapon 14 | 1 1 5 7 Energy Gun 5 | 1 1 1 2 Energy Cannon 2 | . . . 2 Ballistic Gun 1 | . . . 1 Ballistic Cannon 1 | . . 1 . Launcher 2 | . . 2 . Special Weapon . | . . . . Impact Weapon 1 | . . . 1 Slashing Weapon 2 | . . 1 1 Piercing Weapon . | . . . . Special Melee Weapon . | . . . . Unidentified Prototypes 1 | . . . 1 Corrupted Parts 2 | . . . 2 System Corruption 8 | . . . 8 Parts Lost 22 | . . 10 12 Power 5 | . . 2 3 Propulsion 4 | . . 2 2 Utility 5 | . . 2 3 Weapon 8 | . . 4 4 Highest Loss Streak 5 | . . 4 5 To Critical Strikes . | . . . . Average Slot Usage (%) 70 | . 74 59 75 Engine 6 | . 8 4 7 Core 2 | . . . 5 Treads 12 | . . 7 22 Leg 6 | . 18 8 . Device 8 | . . 4 14 Storage 14 | . 23 15 10 Energy Gun 11 | . 23 8 7 Energy Cannon 1 | . . . 3 Impact Weapon 1 | . . . 2 Slashing Weapon 2 | . . 7 1 Naked Turns . | . . . . Heaviest Build 29 | 7 12 16 29 Greatest Support 68 | 3 20 40 68 Greatest Overweight (x) 3 | 2 2 3 2 Average Overweight (x) . | 1 . . . Largest Inventory Capacity 10 | 8 8 8 10 Average Capacity 7 | 7 8 6 7 Most Carried 10 | 8 8 8 10 Average Carried 6 | 6 6 5 6 Final Capacity 10 | 8 8 5 10 Final Carried 8 | 8 6 4 8 Class Distribution -------------------- 100% | Mutant Dominant Class ---------------- Mutant | -10/Materials Mutant | -9/Materials Mutant | -8/Materials Resources | -11 -10 -9 -8 ----------- Run | Yrd Mat Mat Mat Matter Collected 887 | 127 62 294 404 Remotely 123 | . . 123 . Salvage Created 1616 | . 75 429 1112 Parts 101 | . 1 36 64 Haulers Intercepted . | . . . . Recyclers Shooed 3 | . . 2 1 Parts Field Recycled . | . . . . Retrieved Matter . | . . . . Parts Self-Destructed . | . . . . Prevented . | . . . . Kills | -11 -10 -9 -8 ------- Run | Yrd Mat Mat Mat Combat Hostiles Destroyed 38 | . 4 14 20 Melee 1 | . . 1 . Guns 13 | . 3 2 8 Cannons 12 | . . 2 10 AOE 10 | . . 9 1 Classes Destroyed 10 | . 2 7 1 Worker 3 | . . 1 2 Builder 1 | . . 1 . Recycler 2 | . . 1 1 Watcher 3 | . . 2 1 Swarmer 10 | . 3 4 3 Grunt 13 | . 1 5 7 Brawler 1 | . . 1 . Duelist 2 | . . 1 1 Sentry 10 | . . 3 7 Hunter 2 | . . . 2 Best Kill Streak 10 | . 3 10 5 Combat Bots Only 7 | . 3 7 3 Max Kills in Single Turn 3 | . 1 3 2 Gunslinging 1 | . . . 1 Exploded 2 | . . 2 1 Melee 1 | . . 1 . Uniques/NPCs Destroyed . | . . . . Combat | -11 -10 -9 -8 -------- Run | Yrd Mat Mat Mat Hostile Shots Fired 279 | . 40 61 178 Missed 76 | . 11 14 51 Damage Taken 3768 | . 280 1194 2294 Core 1088 | . 134 396 558 Absorbed by Shields . | . . . . Core Remaining (%) 49 | 100 46 1 . Volleys Fired 154 | . 25 33 96 Largest 2 | . 2 2 2 Hottest 113 | . 90 90 113 Shots Fired 185 | . 34 36 115 Gun 107 | . 34 15 58 Cannon 66 | . . 9 57 Launcher 12 | . . 12 . Special . | . . . . Kinetic 25 | . . 9 16 Thermal 103 | . 34 15 54 Explosive 12 | . . 12 . Electromagnetic 45 | . . . 45 Robot Hit Streak 10 | . 8 9 10 Robot Miss Streak 8 | . 8 3 3 Penetration Max 1 | . . . 1 Secondary Targets 1 | . . . 1 Max Gunslinging Chain 1 | . . . 1 Shots Hit Robots 126 | . 18 29 79 Core Hits 68 | . 4 26 38 Critical Kills . | . . . . Critical Parts Destroyed . | . . . . Critical Strikes 1 | . . 1 . Burn 1 | . . 1 . Melee Attacks 5 | . . 2 3 Impact . | . . . . Slashing 5 | . . 2 3 Piercing . | . . . . Sneak Attacks 1 | . . 1 . Combat Hostiles . | . . . . Follow-up Attacks . | . . . . Damage Inflicted 3417 | . 245 1564 1608 Guns 1081 | . 245 152 684 Cannons 935 | . . 145 790 Explosions 1234 | . . 1172 62 Melee 158 | . . 91 67 Ramming 9 | . . 4 5 Kinetic 425 | . . 145 280 Thermal 1160 | . 245 152 763 Explosive 1172 | . . 1172 . Electromagnetic 493 | . . . 493 Impact . | . . . . Slashing 158 | . . 91 67 Piercing . | . . . . Highest Corruption 8 | . . 5 8 Average Corruption 7 | . . 5 7 Corruption Purged . | . . . . Corruption Blocked . | . . . . Effects 28 | . . 6 22 Message Errors 6 | . . . 6 Matter Fused 7 | . . 3 4 Heat Flow Errors 6 | . . 2 4 Energy Discharges 4 | . . . 4 Data Loss (major) 1 | . . 1 . Misfires 1 | . . . 1 Alerts 2 | . . . 2 Weapon Failures 1 | . . . 1 Overload Shots . | . . . . Overflow Damage 139 | . . 139 . Projectiles . | . . . . Explosions 139 | . . 139 . Melee . | . . . . Knockbacks 1 | . . 1 . Impact . | . . . . Kinetic 1 | . . 1 . Secondary . | . . . . Self-Inflicted Damage 259 | . . 259 . Shots 5 | . . 5 . Rammed 2 | . . . 2 Targets Rammed 3 | . . 1 2 Kicked 1 | . . 1 . Crushed . | . . . . Highest Temperature 343 | . 162 328 343 Average Temperature 76 | . 55 79 88 Received Heat Transfer 1074 | . 96 204 774 Siege Activations . | . . . . Robots Corrupted 1 | . . . 1 Combat Hostiles 1 | . . . 1 Parts Fried 3 | . . . 3 Impact Corruptions . | . . . . Robots Melted 1 | . 1 . . Combat Hostiles 1 | . 1 . . Parts Melted 8 | . 2 1 5 Heat Transferred 2520 | . 692 433 1395 Parts Sabotaged . | . . . . Parts Stolen . | . . . . Parts Stripped . | . . . . Power Chain Reactions 2 | . . . 2 Alert | -11 -10 -9 -8 ------- Run | Yrd Mat Mat Mat Peak Influence 551 | . 187 495 551 Initial 124 | . . . 124 Average 224 | . 74 311 261 Maximum Alert Level 2 | . . 2 2 Low Security (%) 49 | 100 100 22 37 Level 1 26 | . . 32 37 Level 2 24 | . . 44 25 Level 3 . | . . . . Level 4 . | . . . . Level 5 . | . . . . High Security . | . . . . Max Security . | . . . . Squads Dispatched 7 | . . 2 5 Investigation 1 | . . . 1 Extermination . | . . . . Reinforcement 5 | . . 2 3 Assault . | . . . . Garrison 1 | . . . 1 Intercept . | . . . . Searches Triggered . | . . . . Construction Impeded 1 | . . . 1 Haulers Reinforced . | . . . . Active Scanning Responses . | . . . . Cargo Convoy Interrupts . | . . . . Stealth | -11 -10 -9 -8 --------- Run | Yrd Mat Mat Mat Distress Signals 2 | . . 2 . Communications Jammed . | . . . . Distress Signals . | . . . . Times Spotted 59 | . 10 19 30 Peak Tracking Total 9 | . 4 4 9 Tactical Retreats 4 | . 2 . 2 Traps | -11 -10 -9 -8 ------- Run | Yrd Mat Mat Mat Traps Triggered . | . . . . Indirectly . | . . . . Trap Hack Attempts . | . . . . Triggered . | . . . . Disarmed . | . . . . Reprogrammed . | . . . . Reused . | . . . . Traps Extracted . | . . . . Installed . | . . . . Triggered . | . . . . Machines | -11 -10 -9 -8 ---------- Run | Yrd Mat Mat Mat Machines Disabled 2 | . . 2 . Max in Single Turn 1 | . . 1 . Machines Repaired . | . . . . Machines Dismantled . | . . . . Machines Sabotaged . | . . . . Overloaded Fab Kills . | . . . . Hacking | -11 -10 -9 -8 --------- Run | Yrd Mat Mat Mat Machines Accessed 8 | . 4 1 3 Terminals 7 | . 4 1 2 Fabricators . | . . . . Repair Stations . | . . . . Recycling Units 1 | . . . 1 Scanalyzers . | . . . . Garrison Access . | . . . . Total Hacks 12 | . 7 1 4 Successful 8 | . 5 1 2 Failed 4 | . 2 . 2 Catastrophic . | . . . . Database Lockouts . | . . . . Manual . | . . . . Terminals 11 | . 7 1 3 Fabricators . | . . . . Repair Stations . | . . . . Recycling Units 1 | . . . 1 Scanalyzers . | . . . . Garrison Access . | . . . . Terminal Hacks 8 | . 5 1 2 Terminal Index 1 | . 1 . . Alert Level 4 | . 2 1 1 Locate Traps 1 | . . . 1 Investigation Status 1 | . 1 . . Recall Investigation 1 | . 1 . . Fabricator Hacks . | . . . . Repair Station Hacks . | . . . . Recycling Unit Hacks . | . . . . Scanalyzer . | . . . . Garrison Access Hacks . | . . . . Unauthorized Hacks . | . . . . Terminals . | . . . . Fabricators . | . . . . Repair Stations . | . . . . Recycling Units . | . . . . Scanalyzers . | . . . . Garrison Access . | . . . . Data Cores Recovered . | . . . . Used . | . . . . Hacking Detections 4 | . 3 . 1 Full Trace Events . | . . . . Feedback Events . | . . . . Feedback Blocked . | . . . . Robot Schematics Acquired . | . . . . Robots Built . | . . . . Authchips . | . . . . Time . | . . . . Total Robot Build Rating . | . . . . Part Schematics Acquired . | . . . . Parts Built . | . . . . Authchips . | . . . . Time . | . . . . Total Part Build Rating . | . . . . Parts Repaired . | . . . . Time . | . . . . Parts Recycled . | . . . . Recycled Matter . | . . . . Retrieved Matter . | . . . . Retrieved Components . | . . . . Parts Scanalyzed . | . . . . Part Schematics Acquired . | . . . . Parts Damaged . | . . . . Bothacking | -11 -10 -9 -8 ------------ Run | Yrd Mat Mat Mat Used RIF Installer . | . . . . Robots Hacked . | . . . . Non-combat . | . . . . Combat . | . . . . Robot Hacks Applied . | . . . . Relay Couplers Released . | . . . . Fabnet Peak Effective % . | . . . . Robots Rewired . | . . . . Allies Hacked . | . . . . Hacks Repelled . | . . . . Allies | -11 -10 -9 -8 -------- Run | Yrd Mat Mat Mat Total Allies . | . . . . Largest Group . | . . . . Highest-Rated Group . | . . . . Highest-Rated Ally . | . . . . Total Orders . | . . . . Ally Attacks . | . . . . Total Damage . | . . . . Kills . | . . . . Allies Corrupted . | . . . . Allies Melted . | . . . . Intel | -11 -10 -9 -8 ------- Run | Yrd Mat Mat Mat Robot Analysis Total . | . . . . Derelict Logs Recovered . | . . . . Drone Launches . | . . . . Drone Recoveries . | . . . . Exploration | -11 -10 -9 -8 ------------- Run | Yrd Mat Mat Mat Turns Passed 1840 | 64 404 502 870 Spaces Moved 889 | 42 235 254 358 Core 164 | 42 68 53 1 Treads 458 | . . 105 353 Legs 263 | . 167 96 . Wheels . | . . . . Hover . | . . . . Flight 4 | . . . 4 Fastest Speed 50 | 50 120 100 150 Average Speed 146 | 128 128 144 162 Slowest Speed 250 | 150 150 200 250 Overloaded Moves . | . . . . Propulsion Burnouts . | . . . . Robots Hopped . | . . . . Cave-ins Triggered 2 | . . 2 . Exploration Rate (%) 27 | 4 44 25 37 Regions Visited 3 Branch Regions . Pre-discovered Areas . | . . . . Known Exits Taken . | . . . . Unknown Exits Taken 3 | 1 1 1 . Scrap Searched . | . . . . Spaces Dug . | . . . . Terrain Destroyed 129 | . . 115 14 Melee . | . . . . Projectile 1 | . . . 1 AOE 128 | . . 115 13 Terrain Rammed . | . . . . Walls Destroyed . | . . . . Machines Disabled . | . . . . Actions | -11 -10 -9 -8 --------- Run | Yrd Mat Mat Mat Total 1228 | 51 302 349 526 Wait 95 | . 34 42 19 Move 886 | 41 234 253 358 Hop . | . . . . Pick Up 35 | 8 3 7 17 Fast Attach 17 | 2 1 4 10 Attach 19 | . 4 6 9 Detach . | . . . . Swap 2 | . . . 2 Drop 12 | . 1 1 10 Fire 154 | . 25 33 96 Melee 5 | . . 2 3 Ram . | . . . . Kick 1 | . . 1 . Crush 2 | . . . 2 Escape Stasis . | . . . . Rewire . | . . . . Trap . | . . . . Miscellaneous . | . . . . Route ------- -11/Scrapyard -10/Materials -9/Materials -8/Materials (discovered 2 exits: [*Fac] / [*Sto]) History --------- Turn | Location | Event 2 | -11/Scrapyard | Met Revision 17 6 | -11/Scrapyard | Discovered new exit (range 15) 65 | -11/Scrapyard | Entered Materials 318 | -10/Materials | Build established: Mutant 394 | -10/Materials | Core integrity fell below 50% 425 | -10/Materials | Discovered new exit (range 13) 469 | -10/Materials | Entered another Materials area 469 | -9/Materials | Evolved 2 slots: Utility x2 609 | -9/Materials | Destroyed 7 combat bots 666 | -9/Materials | Lost 3 parts (1p1n1w) 674 | -9/Materials | Crushed by falling debris 674 | -9/Materials | Core integrity fell below 50% 682 | -9/Materials | Crushed by falling debris 720 | -9/Materials | Lost 4 parts (1p1n1u1w) 723 | -9/Materials | Core integrity fell below 20% 960 | -9/Materials | Discovered new exit (range 8) 971 | -9/Materials | Entered another Materials area 971 | -8/Materials | Evolved 2 slots: Power x1, Propulsion x1 1020 | -8/Materials | Discovered new exit (range 3) 1135 | -8/Materials | Lost 5 parts (1n2u2w) 1461 | -8/Materials | Discovered new exit (range 12) 1786 | -8/Materials | Garrison activated, responded to threat 1814 | -8/Materials | Core integrity fell below 50% 1838 | -8/Materials | Core integrity fell below 20% 1841 | -8/Materials | Destroyed by G-47 Trooper with Particle Gun Last Messages --------------- 01810_ Slug penetrates G-47 Trooper. 01810_ G-47 Trooper destroyed. 01811_ Lgt. Deuterium Engine destroyed. 01812_ Acquired 45 matter. 01814_ Slug penetrates G-47 Trooper. 01816_ System corrupted: Energy discharge (-41). 01816_ Lgt. Nuclear Core destroyed. 01826_ Slug penetrates Y-45 Defender. 01826_ Y-45 Defender destroyed. 01828_ Acquired 38 matter. 01831_ Slug penetrates G-47 Trooper. 01832_ System corrupted: IFF burst signal emitted. 01833_ Slug penetrates Wall. 01833_ G-47 Trooper destroyed. 01837_ Hvy. Flail destroyed. 01837_ U-05 Engineer builds a Wall. 01838_ Critical hit (Burn: +37). 01840_ M-13 Machinist repairs W-25 Informer. 01840_ Slug penetrates G-47 Trooper. Map ----- +----------------------------------------------------+ | ???????????????????????# """ """ # #?? | | ???????????????????????# """ ### ###?? | | ???????????????######### #?# #???? | | ???????? !%% #?# #???? | | ???????????????######### #"""T"""###?# #???? | | ???????????????????????# ##########??? #???? | | ?????????????????###???#% # #??? #???? | | ????????????????? ???# # #??? #???? | | ?????????????????? ??# # #??? #???? | | ????????????????? """?# # #??? #???? | | ?????????????? ?"" """ # + #??? ????? | | ?????????????# """ # # #??? ????? | | ?????????????# + + #????????? | | ?????????????# # %!# #????????? | | ?????????????# # !# #????????? | | ???????????############# ##########????????? | | ???? !%! [=%!=% % = #????????????????? | | ???????????############*[!m #????????????????? | | ??????????????????????#!*uw #????????????????? | | ??????????????????????#= #????????????????? | | ??????????????????????# #????????????????? | | ?????????????########### %%##????????????????? | | ?????????????? %#[ #?????????????????? | | ??????????????"" """ !#=! #?????????????????? | | ??????????????"" """ !%+=% #?????????????????? | | ??????????????"" """ !#u@%#?????????????????? | | ??????????? =#ggg#?????????????????? | | ??????????##############H #?????????????????? | | ???????????????????????# % ????????????????? | | ???????????????????????# ??????????????? | | ???????????????????????# ????????????? | | ???????????????????????+ ###+###???????????? | | ???????????????????????# #?????????????????? | | ???????????????????????# #?????????????????? | | ???????????????????????# #?????????????????? | | ???????????????????????# #?????????????????? | | ???????????????????????# #?????????????????? | | ???????????????????????# #?????????????????? | | ???????????????????????# #?????????????????? | | ???????????????????????? #?????????????????? | | ???????????????????????? #?????????????????? | | ???????????????????????? ??????????????????? | | ?????????????????????????????????????????????? | | ?????????????????????????????????????????????? | | ?????????????????????????????????????????????? | | ?????????????????????????????????????????????? | | ?????????????????????????????????????????????? | | ?????????????????????????????????????????????? | | ?????????????????????????????????????????????? | | ?????????????????????????????????????????????? | +----------------------------------------------------+ Best States ------------- Heat Dissipation 45 Energy Generation 23 Energy Capacity 200 Matter Stores 450 Matter Capacity 600 Sight Range 16 Terrain Scan Density 10 Additional Mass Support 6 Evasion (%) 55 Recoil Reduction 3 Item Schematics ----------------- None Robot Schematics ------------------ None Fabricated ------------ Nothing Alien Tech Used ----------------- None Achievements -------------- None Challenges ------------ None Game ------ Seed FluxFireGun Manual? 0 Play Time 00:20:49 Cumulative 12.5 hours Start 2024.05.14 @ 22:29:08 End 2024.05.14 @ 22:54:40 Sessions 1 Manual Loads 0 Difficulty Rogue Special Mode None Game No. 18 Rogue 18 Adventurer 0 Explorer 0 Win Type - Total 0 Types 0/0/0/0/0/0/0/0/0 Lore% 13 Gallery% 22 Achievement% 17 Wizard Run 0 Options --------- Layout 2 ASCII 0 Keyboard 0 Movement Mouse Keybinds 0 Fullscreen 1 Font 48/Smallcaps Map View 50x44 Zoom Use 0% Tactical HUD 1 Map Filters NONE Filters NONE Steam 1 RUN: 0abedc1d-3a3d-44e9-86d0-601e41629e82